bitfinex-derivatives/quotes_SOLF0:USTF0_20250924
["timestamp","ask_amount","ask_price","bid_price","bid_amount"]
[1758711244754,4.2657,210.92,210.85,1.37334096]
[1758711245050,8.0,210.91,210.85,1.37334096]
[1758711247650,8.0,210.91,210.85,13.47034096]
[1758711248353,12.2653,210.94,210.88,1.37334096]
[1758711249151,12.2653,210.94,210.87,7.83]
[1758711249152,8.0,210.94,210.85,1.37334096]
[1758711250350,4.266,210.91,210.85,1.37334096]
[1758711251555,12.2662,210.9,210.84,1.37334096]
[1758711255351,12.2662,210.9,210.83,7.83]
[1758711255555,12.2662,210.9,210.83,9.20334096]
[1758711255957,8.0,210.9,210.83,13.47074096]
[1758711258061,12.2657,210.92,210.85,7.83]
[1758711259660,8.0,210.92,210.85,12.0969]
[1758711263362,8.0,210.92,210.86,4.2668]
[1758711263666,8.0,210.92,210.86,7.82]
[1758711264761,8.0,210.92,210.87,4.2666]
[1758711264962,7.77,210.93,210.87,4.2666]
[1758711266871,7.77,210.93,210.86,7.82]
[1758711267770,12.0356,210.93,210.86,7.82]
[1758711269161,7.77,210.93,210.86,7.82]
[1758711269368,9.14334096,210.93,210.86,7.82]
[1758711270072,9.14334096,210.93,210.83,5.64074096]
[1758711270272,1.37334096,210.91,210.81,12.0878]
[1758711270669,2.14455557,210.94,210.81,12.0878]
[1758711270869,7.77,210.88,210.82,4.2676]
[1758711271074,7.77,210.94,210.83,7.82]
[1758711272075,4.266,210.91,210.84,4.2672]
[1758711272376,12.036,210.91,210.84,4.2672]
[1758711274372,4.2662,210.9,210.84,4.2672]
[1758711274573,4.2662,210.9,210.83,7.82]
[1758711276078,4.2662,210.9,210.83,12.0874]
[1758711277280,4.2662,210.9,210.83,16.04941191]
[1758711277982,4.2662,210.9,210.83,12.0874]
[1758711278181,4.2662,210.9,210.83,16.04941191]
[1758711278683,7.77,210.89,210.83,16.04941191]
[1758711278894,4.2658,210.92,210.84,7.82]
[1758711279089,4.2658,210.92,210.84,11.78201191]
[1758711279795,4.2658,210.92,210.85,4.267]
[1758711280692,7.77,210.94,210.84,11.78201191]
[1758711280994,2.14455557,210.96,210.84,11.78201191]
[1758711281195,12.036,210.91,210.84,16.04921191]
[1758711281396,7.77,210.91,210.84,11.78201191]
[1758711281692,4.2662,210.9,210.84,16.04931191]
[1758711283600,4.2662,210.9,210.84,11.78201191]
[1758711284101,7.77,210.88,210.85,3.96201191]
[1758711284299,7.77,210.88,210.84,11.78201191]
[1758711284902,7.77,210.88,210.85,7.82]
[1758711285197,4.2665,210.89,210.85,7.82]
[1758711285397,7.77,210.88,210.85,7.82]
[1758711286496,4.2665,210.89,210.85,7.82]
[1758711286696,4.2665,210.89,210.84,3.96201191]
[1758711286891,4.2665,210.89,210.85,7.82]
[1758711287196,4.266,210.91,210.85,3.96201191]
[1758711287399,4.266,210.91,210.85,11.78201191]
[1758711288200,4.266,210.91,210.86,3.96201191]
[1758711288409,12.036,210.91,210.87,7.82]
[1758711288994,7.77,210.9,210.87,7.82]
[1758711293204,66.347,210.95,210.87,7.82]
[1758711293404,7.77,210.94,210.86,3.96201191]
[1758711294304,4.2661,210.9,210.86,3.96201191]
[1758711294504,74.2589,210.91,210.86,3.96201191]
[1758711294803,7.9,210.84,210.83,3.96201191]
[1758711295003,7.9,210.87,210.82,3.96201191]
[1758711295202,7.9,210.87,210.81,3.96201191]
[1758711295203,1.18604161,210.86,210.81,3.96201191]
[1758711295500,7.9,210.84,210.81,3.96201191]
[1758711295896,7.9,210.87,210.81,3.96201191]
[1758711296099,66.3685,210.88,210.81,3.96201191]
[1758711296100,7.9,210.85,210.81,3.96201191]
[1758711296305,7.9,210.84,210.81,7.38]
[1758711300407,12.1675,210.84,210.81,7.38]
[1758711300596,12.1675,210.84,210.77,45.11954304]
[1758711300597,7.28,210.88,210.79,3.96201191]
[1758711300796,7.28,210.86,210.79,3.96201191]
[1758711301008,1.18611759,210.85,210.79,3.96201191]
[1758711301201,7.28,210.86,210.79,3.96201191]
[1758711301409,7.28,210.84,210.79,3.96201191]
[1758711301606,1.18622746,210.83,210.77,3.96201191]
[1758711301906,7.28,210.84,210.77,3.96201191]
[1758711302101,7.28,210.82,210.77,3.96201191]
[1758711302299,7.28,210.84,210.76,3.96201191]
[1758711302699,7.28,210.84,210.77,7.61]
[1758711303503,11.5478,210.82,210.75,3.96201191]
[1758711303698,11.5478,210.82,210.76,7.61]
[1758711304112,4.268,210.81,210.76,7.61]
[1758711304309,4.268,210.81,210.75,3.96201191]
[1758711304704,4.268,210.81,210.76,7.61]
[1758711305009,11.548,210.81,210.75,3.96201191]
[1758711305311,4.2676,210.83,210.76,7.61]
[1758711306405,4.2676,210.83,210.76,11.57201191]
[1758711306608,4.2676,210.83,210.77,7.61]
[1758711307104,4.2679,210.82,210.77,7.61]
[1758711307310,7.28,210.85,210.77,7.61]
[1758711308011,11.5481,210.81,210.77,7.61]
[1758711308211,7.28,210.81,210.77,7.61]
[1758711308713,7.28,210.8,210.77,7.61]
[1758711309010,7.28,210.8,210.75,3.96201191]
[1758711309410,7.28,210.86,210.76,7.61]
[1758711309807,4.2677,210.82,210.76,7.61]
[1758711311412,7.28,210.85,210.76,7.61]
[1758711311913,7.28,210.82,210.76,7.61]
[1758711312112,4.2686,210.78,210.76,7.61]
[1758711312503,66.386,210.83,210.74,7.61]
[1758711312709,66.3824,210.84,210.74,7.61]
[1758711312710,7.28,210.82,210.74,7.61]
[1758711313116,11.5478,210.82,210.74,7.61]
[1758711314813,11.5478,210.82,210.75,4.269]
[1758711315012,11.5478,210.82,210.76,7.61]
[1758711316619,4.268,210.81,210.76,7.61]
[1758711316816,66.3779,210.85,210.73,85.07596748]
[1758711317518,7.28,210.84,210.74,7.61]
[1758711318123,11.548,210.81,210.74,11.8792]
[1758711323021,4.2682,210.8,210.74,11.8792]
[1758711323221,7.28,210.81,210.74,7.61]
[1758711323422,66.3851,210.83,210.73,74.7]
[1758711323722,7.58,210.82,210.73,74.7]
[1758711323918,66.3851,210.83,210.73,74.7]
[1758711323919,11.8486,210.78,210.73,74.7]
[1758711324117,11.8486,210.78,210.74,7.33]
[1758711324317,7.58,210.84,210.74,7.33]
[1758711324616,4.2682,210.8,210.74,11.5992]
[1758711325822,74.9058,210.87,210.74,7.33]
[1758711325823,66.3718,210.87,210.74,7.33]
[1758711326026,7.58,210.85,210.74,7.33]
[1758711326421,66.3748,210.86,210.74,7.33]
[1758711326422,4.2682,210.8,210.74,11.5992]
[1758711327325,7.58,210.81,210.74,7.33]
[1758711328821,4.2686,210.78,210.74,7.33]
[1758711329020,11.8486,210.78,210.74,7.33]
[1758711329221,7.58,210.78,210.74,7.33]
[1758711329827,7.58,210.78,210.73,78.9694]
[1758711330326,7.58,210.78,210.74,7.33]
[1758711330526,7.58,210.78,210.73,78.9694]
[1758711330828,7.58,210.78,210.74,7.33]
[1758711331015,7.58,210.78,210.73,78.9694]
[1758711331221,7.58,210.78,210.74,7.33]
[1758711331925,7.58,210.78,210.73,78.9694]
[1758711332227,7.58,210.78,210.74,7.33]
[1758711332428,11.8486,210.78,210.74,7.33]
[1758711332623,11.8486,210.78,210.73,78.9694]
[1758711332818,11.8486,210.78,210.74,7.33]
[1758711333019,4.2688,210.77,210.73,74.7]
[1758711333227,7.58,210.76,210.73,82.03]
[1758711333925,4.2688,210.77,210.74,7.33]
[1758711335330,4.2688,210.77,210.73,74.7]
[1758711335528,4.2688,210.77,210.74,7.33]
[1758711335928,4.2688,210.77,210.73,74.7]
[1758711336426,11.8488,210.77,210.74,7.33]
[1758711337229,11.8488,210.77,210.73,74.7]
[1758711337528,11.8488,210.77,210.74,7.33]
[1758711338231,73.9864,210.76,210.68,3.96201191]
[1758711338539,7.58,210.73,210.68,115.48]
[1758711339325,1.37353326,210.74,210.68,115.48]
[1758711339529,7.58,210.73,210.68,115.48]
[1758711339729,1.37353326,210.74,210.68,115.48]
[1758711340034,11.85,210.71,210.68,115.48]
[1758711340626,11.85,210.71,210.68,122.81]
[1758711341836,11.85,210.71,210.68,7.33]
[1758711343030,4.2695,210.73,210.67,7.33]
[1758711343233,7.58,210.75,210.67,7.33]
[1758711344030,80.1742145,210.86,210.7,7.33]
[1758711344235,1.37353326,210.78,210.7,7.33]
[1758711344927,1.37353326,210.78,210.71,4.2698]
[1758711345128,1.37353326,210.78,210.72,7.33]
[1758711345426,7.58,210.79,210.72,7.33]
[1758711346532,11.8484,210.79,210.72,11.5996]
[1758711347026,7.58,210.79,210.72,11.5996]
[1758711347237,5.64143326,210.81,210.74,7.33]
[1758711347934,4.2679,210.81,210.74,7.33]
[1758711348140,4.2679,210.81,210.75,7.33]
[1758711350534,11.8476,210.83,210.75,11.599]
[1758711350739,11.8476,210.83,210.76,7.33]
[1758711350940,4.2676,210.83,210.76,7.33]
[1758711351134,4.2671,210.85,210.77,4.2686]
[1758711351339,4.2671,210.85,210.78,7.33]
[1758711351833,4.2671,210.85,210.77,4.2686]
[1758711351834,4.2675,210.83,210.77,11.5986]
[1758711352240,4.2675,210.83,210.77,7.33]
[1758711354244,4.2678,210.82,210.77,7.33]
[1758711354443,11.8378,210.82,210.76,7.92]
[1758711358951,4.268,210.81,210.76,7.92]
[1758711359143,7.57,210.8,210.76,7.92]
[1758711359745,7.57,210.8,210.75,7.92]
[1758711359953,7.57,210.8,210.74,9.63191237]
[1758711360150,7.57,210.8,210.75,7.92]
[1758711360351,7.57,210.8,210.74,9.63191237]
[1758711360751,7.57,210.8,210.75,7.69]
[1758711361057,11.8475,210.83,210.76,7.69]
[1758711361553,4.2675,210.83,210.76,7.69]
[1758711361754,4.2675,210.83,210.76,11.9588]
[1758711362154,7.58,210.83,210.76,7.69]
[1758711363857,1.37353326,210.85,210.74,5.36261237]
[1758711363858,4.268,210.81,210.74,9.63191237]
[1758711364060,8.95353326,210.82,210.72,3.98907911]
[1758711364260,7.58,210.78,210.71,11.67907911]
[1758711364759,4.2691,210.76,210.71,3.98907911]
[1758711364956,11.8491,210.76,210.71,3.98907911]
[1758711365157,11.8491,210.76,210.72,7.69]
[1758711365553,4.2691,210.76,210.71,3.98907911]
[1758711366054,4.2686,210.78,210.72,7.69]
[1758711367055,4.2681,210.8,210.73,4.2694]
[1758711367260,4.2681,210.8,210.74,7.69]
[1758711367758,11.8484,210.79,210.74,7.69]
[1758711367958,11.8484,210.79,210.73,9.63201237]
[1758711368158,11.8484,210.79,210.73,17.32201237]
[1758711369862,4.2679,210.81,210.74,4.2692]
[1758711370064,4.2679,210.81,210.75,7.69]
[1758711371767,7.58,210.82,210.76,1.37353326]
[1758711371959,7.58,210.82,210.77,7.69]
[1758711372156,7.58,210.85,210.77,7.69]
[1758711372965,11.8471,210.85,210.78,4.2684]
[1758711373170,7.58,210.85,210.79,1.37353326]
[1758711373367,1.37353326,210.87,210.8,7.69]
[1758711373958,4.2663,210.89,210.82,9.06353326]
[1758711374970,4.2663,210.89,210.82,7.69]
[1758711375167,4.2663,210.89,210.82,9.06353326]
[1758711375770,4.2663,210.89,210.82,13.33113326]
[1758711376268,4.2663,210.89,210.82,9.06353326]
[1758711378073,7.58,210.91,210.82,9.06353326]
[1758711378476,8.95353326,210.89,210.79,9.06353326]
[1758711379772,4.267,210.86,210.79,9.06353326]
[1758711379973,7.58,210.86,210.79,9.06353326]
[1758711381778,7.58,210.87,210.77,5.36261237]
[1758711382173,7.58,210.87,210.77,1.37353326]
[1758711382477,4.2677,210.83,210.77,5.36261237]
[1758711383070,4.2677,210.83,210.77,1.37353326]
[1758711383375,4.2677,210.83,210.77,5.36261237]
[1758711385078,4.2677,210.83,210.78,7.44]
[1758711385270,4.2671,210.85,210.8,7.44]
[1758711385681,4.2671,210.85,210.79,1.37353326]
[1758711385979,11.5267,210.87,210.8,7.44]
[1758711386375,7.26,210.91,210.82,7.44]
[1758711387981,4.2666,210.88,210.82,7.44]
[1758711390482,4.2661,210.9,210.82,7.44]
[1758711390678,7.26,210.91,210.82,7.44]
[1758711391784,4.2664,210.89,210.82,7.44]
[1758711392083,7.26,210.91,210.82,7.44]
[1758711393787,4.2666,210.88,210.82,7.44]
[1758711401993,4.2668,210.87,210.82,7.44]
[1758711402291,4.2668,210.87,210.81,7.44]
[1758711402787,7.26,210.89,210.79,3.98357377]
[1758711402993,7.26,210.87,210.77,7.44]
[1758711403182,66.3841,210.83,210.74,11.42357377]
[1758711403387,66.3841,210.83,210.74,7.44]
[1758711403388,7.26,210.82,210.74,7.44]
[1758711403893,7.26,210.76,210.72,0.57800974]
[1758711404091,7.26,210.76,210.73,7.44]
[1758711405383,7.26,210.77,210.73,7.44]
[1758711405692,7.26,210.75,210.69,11.42357377]
[1758711406091,7.26,210.75,210.65,3.98357377]
[1758711406301,7.26,210.75,210.66,7.44]
[1758711406798,4.2698,210.72,210.66,7.44]
[1758711410795,7.26,210.73,210.66,7.44]
[1758711412704,11.5287,210.77,210.65,9.58429867]
[1758711412996,11.5287,210.77,210.66,7.44]
[1758711413594,11.8091,210.75,210.68,7.28]
[1758711413801,7.54,210.75,210.68,7.28]
[1758711414801,4.2695,210.74,210.68,7.28]
[1758711417599,7.54,210.75,210.68,7.28]
[1758711418801,7.54,210.75,210.68,11.5505]
[1758711419187,7.54,210.75,210.68,4.2705]
[1758711419494,7.54,210.75,210.69,7.42]
[1758711419793,12.2484,210.79,210.7,7.42]
[1758711420602,7.98,210.79,210.7,7.42]
[1758711420800,4.268,210.81,210.7,7.42]
[1758711420801,12.248,210.81,210.7,7.42]
[1758711421902,12.248,210.81,210.72,7.42]
[1758711423302,12.248,210.81,210.72,11.6896]
[1758711423500,66.3694,210.88,210.68,3.98357377]
[1758711423501,4.2674,210.84,210.71,7.42]
[1758711423696,4.2674,210.84,210.74,7.42]
[1758711423900,7.98,210.85,210.77,7.42]
[1758711424104,7.98,210.87,210.77,7.42]
[1758711425004,7.98,210.87,210.79,7.42]
[1758711426007,12.2468,210.87,210.79,7.42]
[1758711428005,7.98,210.87,210.79,7.42]
[1758711428209,66.3458,210.96,210.8,7.42]
[1758711428210,12.2459,210.91,210.8,7.42]
[1758711428408,7.98,210.91,210.8,7.42]
[1758711429809,7.98,210.91,210.82,4.2675]
[1758711430010,7.98,210.91,210.83,7.42]
[1758711433709,7.98,210.89,210.78,7.42]
[1758711434612,12.2464,210.89,210.79,7.42]
[1758711434811,7.98,210.89,210.79,7.42]
[1758711435204,7.98,210.89,210.8,4.2679]
[1758711435607,7.98,210.89,210.81,7.42]
[1758711436805,7.98,210.89,210.82,4.2675]
[1758711437006,7.98,210.89,210.83,7.42]
[1758711439213,7.98,210.95,210.84,7.42]
[1758711439414,7.98,210.95,210.84,8.01147568]
[1758711441017,7.98,210.95,210.87,11.6865]
[1758711445514,7.48,211.02,210.87,7.42]
[1758711445723,7.48,211.02,210.9,7.84]
[1758711446525,7.48,210.98,210.9,7.84]
[1758711447915,4.2648,210.97,210.9,7.84]
[1758711448113,7.48,210.96,210.9,7.84]
[1758711448309,7.48,210.93,210.87,7.84]
[1758711450216,7.48,210.93,210.84,0.59147568]
[1758711451618,7.48,210.93,210.85,7.84]
[1758711451821,4.2657,210.92,210.85,7.84]
[1758711453720,7.48,210.93,210.85,7.84]
[1758711455314,11.7456,210.93,210.85,7.84]
[1758711456427,4.2658,210.92,210.85,7.84]
[1758711456923,7.48,210.91,210.85,7.84]
[1758711457721,7.48,210.91,210.85,12.1069]
[1758711458525,7.48,210.93,210.86,4.2668]
[1758711461023,7.48,210.93,210.85,7.84]
[1758711461928,11.7456,210.93,210.85,7.84]
[1758711462629,7.48,210.93,210.86,7.84]
[1758711463229,11.7456,210.93,210.86,7.84]
[1758711463820,1.37188869,210.91,210.83,0.61595117]
[1758711464019,7.48,210.9,210.81,7.84]
[1758711465627,1.37188869,210.91,210.81,21.94562899]
[1758711465827,7.48,210.88,210.81,7.84]
[1758711466737,7.48,210.88,210.82,4.2676]
[1758711468237,7.48,210.88,210.82,8.22007678]
[1758711470940,4.2659,210.91,210.84,7.84]
[1758711471639,7.48,210.92,210.84,9.21188869]
[1758711471846,7.48,210.92,210.84,13.16436547]
[1758711472839,7.48,210.92,210.86,7.84]
[1758711473835,7.48,210.92,210.86,12.1068]
[1758711474344,11.7458,210.92,210.86,7.84]
[1758711475240,4.2662,210.9,210.84,3.95247678]
[1758711475437,12.2662,210.9,210.84,3.95247678]
[1758711475642,8.0,210.9,210.84,3.95247678]
[1758711475839,8.0,210.9,210.84,8.21967678]
[1758711476045,5.63768869,210.92,210.85,7.36]
[1758711476646,5.63768869,210.92,210.85,11.627]
[1758711476848,5.63768869,210.92,210.85,15.57947678]
[1758711477846,8.0,210.91,210.85,11.31247678]
[1758711478047,8.0,210.91,210.85,7.36]
[1758711478546,4.2662,210.9,210.85,7.36]
[1758711478746,8.0,210.89,210.85,7.36]
[1758711479146,4.2662,210.9,210.85,7.36]
[1758711479346,4.2664,210.89,210.85,7.36]
[1758711479547,7.32,210.88,210.85,7.36]
[1758711482247,7.32,210.88,210.85,11.31247678]
[1758711483445,4.266,210.91,210.86,3.95247678]
[1758711483653,11.586,210.91,210.87,7.46]
[1758711483850,7.32,210.9,210.87,7.46]
[1758711484347,7.32,210.9,210.86,3.95247678]
[1758711484550,7.32,210.9,210.87,7.46]
[1758711484950,7.32,210.9,210.86,3.95247678]
[1758711485144,4.266,210.91,210.86,3.95247678]
[1758711485345,4.266,210.91,210.87,3.95247678]
[1758711485540,7.32,210.9,210.87,3.95247678]
[1758711485746,4.266,210.91,210.87,3.95247678]
[1758711486352,7.32,210.9,210.87,3.95247678]
[1758711487352,5.63768869,210.92,210.87,3.95247678]
[1758711487853,7.32,210.91,210.87,3.95247678]
[1758711488354,5.63768869,210.92,210.87,3.95247678]
[1758711488648,7.32,210.91,210.87,3.95247678]
[1758711488847,12.95768869,210.92,210.86,3.95247678]
[1758711490054,7.32,210.93,210.87,3.95247678]
[1758711490855,11.5856,210.93,210.87,3.95247678]
[1758711492150,11.5856,210.93,210.88,3.95247678]
[1758711492352,4.2656,210.93,210.88,11.41247678]
[1758711492655,7.32,210.92,210.88,11.41247678]
[1758711496855,4.2652,210.95,210.89,7.46]
[1758711497061,4.2652,210.95,210.89,11.41247678]
[1758711497463,4.2652,210.95,210.89,15.67877678]
[1758711497657,11.5852,210.95,210.91,11.41247678]
[1758711497855,11.5852,210.95,210.92,7.46]
[1758711498261,7.32,210.95,210.92,7.46]
[1758711498758,11.5848,210.97,210.91,11.41247678]
[1758711500160,11.5848,210.97,210.92,3.95247678]
[1758711500367,11.5848,210.97,210.93,7.46]
[1758711500762,7.32,210.96,210.93,7.46]
[1758711501465,11.5843,210.99,210.92,3.95247678]
[1758711501661,11.5843,210.99,210.92,11.41247678]
[1758711503168,4.2646,210.98,210.92,11.41247678]
[1758711503369,7.32,210.99,210.92,11.41247678]
[1758711503560,1.37188869,211.0,210.92,11.41247678]
[1758711504264,7.54,210.96,210.92,11.41247678]
[1758711504668,7.54,210.96,210.93,7.41]
[1758711506666,4.2644,210.99,210.92,4.2655]
[1758711506867,7.54,211.0,210.93,7.41]
[1758711507271,7.54,211.0,210.93,11.36247678]
[1758711509069,7.54,211.0,210.94,7.41]
[1758711509468,7.54,211.0,210.94,8.78188869]
[1758711511673,7.54,211.0,210.94,7.41]
[1758711511972,7.54,211.0,210.94,8.78188869]
[1758711516474,7.54,211.01,210.91,12.73436547]
[1758711516673,7.54,211.09,210.93,11.36247678]
[1758711516972,7.54,211.07,210.95,7.41]
[1758711517474,7.54,211.01,210.95,7.41]
[1758711521273,4.2641,211.0,210.94,3.95247678]
[1758711521474,7.54,210.99,210.92,17.77027496]
[1758711521668,66.3093,211.07,210.94,11.36247678]
[1758711521873,7.54,211.06,210.94,7.41]
[1758711522176,7.54,210.99,210.93,11.36247678]
[1758711523076,7.54,210.99,210.93,15.62787678]
[1758711524376,66.3093,211.07,210.94,11.6752]
[1758711524876,4.2642,211.0,210.94,7.41]
[1758711525075,73.8605,211.04,210.92,3.95247678]
[1758711525280,66.3205,211.04,210.91,11.36247678]
[1758711525479,7.54,210.97,210.91,11.36247678]
[1758711525680,7.54,210.97,210.91,7.41]
[1758711526779,11.8048,210.97,210.91,7.41]
[1758711527477,7.54,210.97,210.91,7.41]
[1758711529282,7.54,210.97,210.91,11.6758]
[1758711529484,7.54,210.97,210.91,8.21827678]
[1758711529675,7.54,210.97,210.94,7.41]
[1758711529976,7.54,210.97,210.93,3.95247678]
[1758711530180,7.54,210.97,210.94,7.41]
[1758711532177,7.54,210.97,210.93,3.95247678]
[1758711532381,11.8042,211.0,210.94,7.41]
[1758711534387,11.8042,211.0,210.94,11.36247678]
[1758711534982,7.54,211.0,210.94,11.36247678]
[1758711536488,7.39,210.99,210.93,3.95247678]
[1758711537789,7.39,210.99,210.93,11.77247678]
[1758711537980,7.39,210.99,210.93,16.03787678]
[1758711540392,7.39,210.99,210.93,11.77247678]
[1758711541298,7.39,210.99,210.94,3.95247678]
[1758711541588,7.39,210.99,210.95,7.38]
[1758711541898,7.48,210.99,210.95,7.38]
[1758711542391,7.48,210.98,210.95,7.38]
[1758711542591,4.2644,210.99,210.95,7.38]
[1758711542787,7.48,210.98,210.95,7.38]
[1758711544595,12.7455145,211.09,210.96,7.38]
[1758711544794,7.48,211.09,211.02,11.33247678]
[1758711546296,7.48,211.09,211.03,7.38]
[1758711549905,7.48,211.08,210.99,7.38]
[1758711550305,11.7426,211.08,210.99,7.38]
[1758711550900,7.48,211.06,210.99,7.38]
[1758711552502,7.48,211.06,210.97,3.95247678]
[1758711552806,7.48,211.04,210.95,7.38]
[1758711553804,4.2639,211.02,210.95,7.38]
[1758711554006,7.48,211.01,210.95,7.38]
[1758711556811,7.48,211.01,210.95,11.33247678]
[1758711557011,7.48,211.01,210.95,7.38]
[1758711557205,11.744,211.01,210.95,7.38]
[1758711559217,4.2642,211.0,210.95,7.38]
[1758711559412,7.48,210.99,210.95,7.38]
[1758711559906,7.48,210.99,210.94,3.95247678]
[1758711560111,7.48,210.99,210.95,7.38]
[1758711560514,7.48,210.99,210.94,3.95247678]
[1758711560910,7.48,210.99,210.95,7.38]
[1758711561111,4.2642,211.0,210.95,7.38]
[1758711562008,11.7442,211.0,210.94,3.95247678]
[1758711562512,11.7442,211.0,210.95,7.38]
[1758711563013,4.2642,211.0,210.94,3.95247678]
[1758711563213,4.2642,211.0,210.94,11.33247678]
[1758711565120,66.3217,211.03,210.94,11.33247678]
[1758711565420,7.88,211.01,210.93,3.95247678]
[1758711565622,7.88,211.01,210.92,3.95247678]
[1758711566121,7.88,210.96,210.93,7.34]
[1758711566513,74.2079,211.01,210.93,7.34]
[1758711566820,7.88,210.95,210.92,11.29247678]
[1758711567122,7.88,210.95,210.92,3.95247678]
[1758711567524,4.265,210.96,210.92,3.95247678]
[1758711567722,4.265,210.96,210.91,3.95247678]
[1758711567723,7.88,210.95,210.91,3.95247678]
[1758711568018,7.88,210.95,210.91,11.29247678]
[1758711568420,4.265,210.96,210.91,11.29247678]
[1758711568624,7.88,210.95,210.91,11.29247678]
[1758711569116,4.265,210.96,210.91,11.29247678]
[1758711569320,7.88,210.95,210.91,11.29247678]
[1758711569523,7.88,210.95,210.92,7.34]
[1758711571725,7.88,210.95,210.91,3.95247678]
[1758711571923,7.88,210.95,210.92,7.34]
[1758711573431,7.88,210.95,210.93,3.95247678]
[1758711573929,7.88,210.94,210.93,3.95247678]
[1758711574130,7.88,210.94,210.92,3.95247678]
[1758711575831,7.88,210.94,210.92,11.29247678]
[1758711579737,7.88,210.95,210.92,11.29247678]
[1758711580234,7.88,210.95,210.93,7.34]
[1758711580534,7.88,210.97,210.94,7.34]
[1758711580934,4.2646,210.98,210.94,7.34]
[1758711581633,7.88,210.97,210.94,7.34]
[1758711581829,7.88,210.96,210.93,3.95247678]
[1758711582036,7.88,210.99,210.92,3.95247678]
[1758711582530,4.2645,210.98,210.92,3.95247678]
[1758711582835,7.88,210.97,210.92,11.29247678]
[1758711583035,7.88,210.97,210.92,3.95247678]
[1758711583530,7.88,210.97,210.92,11.29247678]
[1758711583935,4.2645,210.98,210.92,11.29247678]
[1758711584136,4.2648,210.97,210.92,11.29247678]
[1758711584337,7.88,210.96,210.92,11.29247678]
[1758711584534,1.3715184,210.99,210.92,11.29247678]
[1758711584729,1.3715184,210.96,210.91,3.95247678]
[1758711584935,7.88,210.95,210.9,3.95247678]
[1758711585633,4.2652,210.95,210.9,3.95247678]
[1758711586037,7.88,210.94,210.9,3.95247678]
[1758711586539,7.88,210.94,210.89,11.29247678]
[1758711586836,4.2654,210.94,210.89,11.29247678]
[1758711587138,7.88,210.93,210.89,11.29247678]
[1758711589443,4.2656,210.93,210.89,11.29247678]
[1758711589642,7.88,210.92,210.89,11.29247678]
[1758711591343,7.88,210.92,210.9,7.34]
[1758711592241,7.88,210.92,210.9,11.29247678]
[1758711592441,7.88,210.94,210.9,11.29247678]
[1758711592736,7.88,210.97,210.91,11.29247678]
[1758711592941,7.88,210.98,210.92,11.29247678]
[1758711593641,7.88,210.98,210.94,7.34]
[1758711593844,7.88,210.98,210.93,3.95247678]
[1758711594241,7.88,210.98,210.94,3.95247678]
[1758711594443,7.88,210.98,210.95,7.74]
[1758711594943,12.1445,210.98,210.95,7.74]
[1758711595544,11.9148,210.97,210.95,7.74]